[Event "28th Hit Open-A 2024"]
[Site "Nova Gorica"]
[Date "2024.01.27"]
[Round "2.2"]
[White "Ongut, Tamas Gunes"]
[Black "Basso, Pier Luigi"]
[Result "1/2-1/2"]
[ECO "D11"]
[WhiteElo "2310"]
[BlackElo "2482"]
[Annotator "RC"]
[PlyCount "46"]
[EventDate "2024.01.22"]
[EventType "swiss"]
[EventCountry "SLO"]
[SourceTitle "playchess.com"]
[Source "ChessBase"]
[SourceQuality "1"]
[TimeControl "5400+30"]

1. d4 {[%emt 0:00:05]} d5 {[%emt 0:16:20]} 2. c4 {[%emt 0:00:07]} c6 {[%emt 0:00:05]} 3. Nf3 {[%emt 0:00:07]} Nf6 {[%emt 0:00:05]} 4. e3 {[%emt 0:00:11]} Bg4 {[%emt 0:01:06]} 5. Qb3 {[%emt 0:00:25]} Qb6 {[%emt 0:00:23]} 6. Ne5 {[%emt 0:00:20]} Bf5 {[%emt 0:01:44]} 7. f3 {[%emt 0:00:55]} e6 {[%emt 0:05:05]} 8. g4 {[%emt 0:01:40]} Qxb3 {[%emt 0:11:08]} 9. axb3 {[%emt 0:00:10]} Bc2 {[%emt 0:00:21]} 10. c5 {[%emt 0:15:06]} h5 {[%emt 0:02:48]} 11. g5 {[%emt 0:01:21]} Nfd7 {[%emt 0:00:07]} 12. Nxd7 {[%emt 0:02:43]} Nxd7 {[%emt 0:00:08]} 13. h4 {[%emt 0:04:22]} a6 {[%emt 0:01:47]} 14. b4 {[%emt 0:01:22]} Rc8 {[%emt 0:04:06]} 15. Nc3 {[%emt 0:01:50]} Bg6 {[%emt 0:01:02]} 16. Bh3 {[%emt 0:04:08]} Bf5 {[%emt 0:12:01]} 17. Bxf5 {[%emt 0:29:06]} exf5 {[%emt 0:00:10]} 18. e4 {[%emt 0:00:06]} fxe4 {[%emt 0:00:04]} 19. fxe4 {[%emt 0:00:07]} dxe4 {[%emt 0:00:05]} 20. Nxe4 {[%emt 0:00:07]} Be7 {[%emt 0:00:31]} 21. Bf4 {[%emt 0:00:08]} O-O {[%emt 0:00:44]} 22. O-O-O {[%emt 0:00:08]} Rfe8 {[%emt 0:01:18]} 23. Rhe1 {[%emt 0:03:00]} Nf8 {[%emt 0:03:44]} 1/2-1/2

[Event "28th Hit Open-A 2024"]
[Site "Nova Gorica"]
[Date "2024.01.27"]
[Round "2.3"]
[White "Csonka, Balazs"]
[Black "Stevanic, David"]
[Result "1-0"]
[ECO "E05"]
[WhiteElo "2479"]
[BlackElo "2294"]
[Annotator "RC"]
[PlyCount "61"]
[EventDate "2024.01.22"]
[EventType "swiss"]
[EventCountry "SLO"]
[SourceTitle "playchess.com"]
[Source "ChessBase"]
[SourceQuality "1"]
[TimeControl "5400+30"]

1. d4 {[%emt 0:00:04]} Nf6 {[%emt 0:00:23]} 2. c4 {[%emt 0:00:10]} e6 {[%emt 0:00:04]} 3. g3 {[%emt 0:00:57]} d5 {[%emt 0:00:11]} 4. Bg2 {[%emt 0:00:06]} Be7 {[%emt 0:00:05]} 5. Nf3 {[%emt 0:00:07]} O-O {[%emt 0:00:15]} 6. O-O {[%emt 0:00:27]} dxc4 {[%emt 0:00:04]} 7. Na3 {[%emt 0:00:37]} Bxa3 {[%emt 0:04:23]} 8. bxa3 {[%emt 0:00:02]} b5 {[%emt 0:07:41]} 9. a4 {[%emt 0:01:56]} a6 {[%emt 0:03:32]} 10. Ba3 {[%emt 0:09:51]} Re8 {[%emt 0:01:48]} 11. Ne5 {[%emt 0:00:57]} Nd5 {[%emt 0:01:26]} 12. e4 {[%emt 0:00:38]} Nf6 {[%emt 0:00:38]} 13. Nxf7 {[%emt 0:00:18]} Kxf7 {[%emt 0:01:39]} 14. e5 {[%emt 0:00:08]} c6 {[%emt 0:19:08]} 15. exf6 {[%emt 0:01:26]} Qxf6 {[%emt 0:01:30]} 16. Re1 {[%emt 0:26:06]} Bb7 {[%emt 0:02:53]} 17. Re4 {[%emt 0:05:55]} Kg8 {[%emt 0:02:37]} 18. Rf4 {[%emt 0:00:31]} Qg5 {[%emt 0:03:52]} 19. h4 {[%emt 0:03:45]} Qh6 {[%emt 0:06:10]} 20. Bc1 {[%emt 0:05:10]} g6 {[%emt 0:00:04]} 21. Rf7 {[%emt 0:00:40]} Qxc1 {[%emt 0:00:20]} 22. Qxc1 {[%emt 0:00:08]} Kxf7 {[%emt 0:00:05]} 23. Qf4+ {[%emt 0:04:29]} Kg8 {[%emt 0:00:05]} 24. Qc7 {[%emt 0:00:07]} Bc8 {[%emt 0:01:23]} 25. Bxc6 {[%emt 0:00:12]} Nxc6 {[%emt 0:00:04]} 26. Qxc6 {[%emt 0:00:09]} Bb7 {[%emt 0:00:02]} 27. Qxb7 {[%emt 0:00:09]} c3 {[%emt 0:00:04]} 28. axb5 {[%emt 0:00:51]} axb5 {[%emt 0:00:33]} 29. Qxb5 {[%emt 0:00:12]} c2 {[%emt 0:00:11]} 30. Rc1 {[%emt 0:00:14]} Rec8 {[%emt 0:00:11]} 31. Qb3 {[%emt 0:00:15]} 1-0

[Event "28th Hit Open-A 2024"]
[Site "Nova Gorica"]
[Date "2024.01.27"]
[Round "2.4"]
[White "Lavrencic, Matic"]
[Black "Beliavsky, Alexander G"]
[Result "1/2-1/2"]
[ECO "C54"]
[WhiteElo "2299"]
[BlackElo "2475"]
[Annotator "RC"]
[PlyCount "68"]
[EventDate "2024.01.22"]
[EventType "swiss"]
[EventCountry "SLO"]
[SourceTitle "playchess.com"]
[Source "ChessBase"]
[SourceQuality "1"]
[TimeControl "5400+30"]

1. e4 {[%emt 0:00:08]} e5 {[%emt 0:00:07]} 2. Nf3 {[%emt 0:00:41]} Nc6 {[%emt 0:00:07]} 3. Bc4 {[%emt 0:00:15]} Bc5 {[%emt 0:01:09]} 4. c3 {[%emt 0:00:48]} Nf6 {[%emt 0:00:24]} 5. d3 {[%emt 0:00:09]} d6 {[%emt 0:03:15]} 6. O-O {[%emt 0:00:23]} O-O {[%emt 0:00:55]} 7. h3 {[%emt 0:00:46]} h6 {[%emt 0:07:05]} 8. Re1 {[%emt 0:00:17]} a6 {[%emt 0:01:40]} 9. a4 {[%emt 0:00:46]} Ba7 {[%emt 0:01:07]} 10. Nbd2 {[%emt 0:00:23]} Ne7 {[%emt 0:16:33]} 11. Bb3 {[%emt 0:04:22]} Ng6 {[%emt 0:03:48]} 12. Nf1 {[%emt 0:00:36]} c6 {[%emt 0:04:12]} 13. Ng3 {[%emt 0:01:07]} d5 {[%emt 0:02:28]} 14. exd5 {[%emt 0:00:24]} Nxd5 {[%emt 0:00:07]} 15. d4 {[%emt 0:00:14]} exd4 {[%emt 0:01:57]} 16. Nxd4 {[%emt 0:00:24]} Re8 {[%emt 0:07:08]} 17. Rxe8+ {[%emt 0:01:02]} Qxe8 {[%emt 0:00:02]} 18. Bxd5 {[%emt 0:00:20]} cxd5 {[%emt 0:00:03]} 19. Be3 {[%emt 0:00:21]} Bb8 {[%emt 0:04:44]} 20. Ndf5 {[%emt 0:01:50]} Bxf5 {[%emt 0:05:18]} 21. Nxf5 {[%emt 0:00:55]} Qe5 {[%emt 0:00:13]} 22. Ng3 {[%emt 0:00:12]} Qe6 {[%emt 0:03:44]} 23. Ne2 {[%emt 0:05:23]} Nh4 {[%emt 0:06:42]} 24. Nd4 {[%emt 0:16:17]} Qe4 {[%emt 0:06:27]} 25. Qg4 {[%emt 0:07:45]} Bc7 {[%emt 0:01:28]} 26. Rd1 {[%emt 0:12:45]} Rd8 {[%emt 0:00:38]} 27. Nf3 {[%emt 0:06:50]} Nxf3+ {[%emt 0:00:53]} 28. gxf3 {[%emt 0:04:34]} Qe6 {[%emt 0:00:37]} 29. Bd4 {[%emt 0:06:03]} Qxg4+ {[%emt 0:00:06]} 30. fxg4 {[%emt 0:00:18]} f6 {[%emt 0:00:10]} 31. Kg2 {[%emt 0:01:15]} Kf7 {[%emt 0:00:04]} 32. Kf3 {[%emt 0:00:16]} Ke6 {[%emt 0:01:10]} 33. Re1+ {[%emt 0:02:03]} Be5 {[%emt 0:02:00]} 34. Ke3 {[%emt 0:00:23]} g5 {[%emt 0:02:41]} 1/2-1/2

[Event "28th Hit Open-A 2024"]
[Site "Nova Gorica"]
[Date "2024.01.27"]
[Round "2.5"]
[White "Doric, Darko"]
[Black "Ashwath, R.."]
[Result "1/2-1/2"]
[ECO "A92"]
[WhiteElo "2456"]
[BlackElo "2284"]
[Annotator "RC"]
[PlyCount "68"]
[EventDate "2024.01.22"]
[EventType "swiss"]
[EventCountry "SLO"]
[SourceTitle "playchess.com"]
[Source "ChessBase"]
[SourceQuality "1"]
[TimeControl "5400+30"]

1. d4 {[%emt 0:00:04]} e6 {[%emt 0:08:44]} 2. Nf3 {[%emt 0:00:33]} f5 {[%emt 0:01:01]} 3. g3 {[%emt 0:00:13]} Nf6 {[%emt 0:00:05]} 4. Bg2 {[%emt 0:00:07]} Be7 {[%emt 0:00:24]} 5. c4 {[%emt 0:00:28]} d5 {[%emt 0:00:34]} 6. Qc2 {[%emt 0:00:30]} Nc6 {[%emt 0:02:39]} 7. a3 {[%emt 0:00:14]} Ne4 {[%emt 0:01:33]} 8. Nc3 {[%emt 0:00:10]} Bf6 {[%emt 0:01:49]} 9. e3 {[%emt 0:04:49]} Na5 {[%emt 0:14:06]} 10. cxd5 {[%emt 0:09:50]} exd5 {[%emt 0:00:28]} 11. Ne5 {[%emt 0:00:41]} Bxe5 {[%emt 0:12:13]} 12. dxe5 {[%emt 0:00:37]} Nc4 {[%emt 0:02:27]} 13. f4 {[%emt 0:04:40]} Be6 {[%emt 0:02:39]} 14. b3 {[%emt 0:04:12]} Na5 {[%emt 0:03:02]} 15. Nb5 {[%emt 0:01:44]} Nc6 {[%emt 0:05:50]} 16. O-O {[%emt 0:07:33]} a6 {[%emt 0:02:14]} 17. Nc3 {[%emt 0:04:49]} Qe7 {[%emt 0:02:04]} 18. b4 {[%emt 0:02:22]} g5 {[%emt 0:11:34]} 19. Rd1 {[%emt 0:07:24]} Rd8 {[%emt 0:00:52]} 20. Bb2 {[%emt 0:00:57]} gxf4 {[%emt 0:03:19]} 21. gxf4 {[%emt 0:12:35]} Rg8 {[%emt 0:01:00]} 22. Rf1 {[%emt 0:05:17]} Nxc3 {[%emt 0:12:46]} 23. Bxc3 {[%emt 0:00:11]} d4 {[%emt 0:00:21]} 24. Bxd4 {[%emt 0:01:29]} Nxd4 {[%emt 0:01:27]} 25. exd4 {[%emt 0:00:05]} Rxd4 {[%emt 0:00:10]} 26. Rad1 {[%emt 0:04:50]} Qd7 {[%emt 0:02:22]} 27. Rxd4 {[%emt 0:08:39]} Qxd4+ {[%emt 0:00:03]} 28. Qf2 {[%emt 0:00:17]} Qd3 {[%emt 0:02:05]} 29. Kh1 {[%emt 0:00:09]} Rxg2 {[%emt 0:03:24]} 30. Kxg2 {[%emt 0:00:35]} Bd5+ {[%emt 0:00:02]} 31. Kg1 {[%emt 0:00:23]} Qe4 {[%emt 0:00:07]} 32. Qg3 {[%emt 0:03:21]} Qd4+ {[%emt 0:00:07]} 33. Qf2 {[%emt 0:00:09]} Qe4 {[%emt 0:00:03]} 34. Qg3 {[%emt 0:00:58]} Qd4+ {[%emt 0:00:03]} 1/2-1/2

[Event "28th Hit Open-A 2024"]
[Site "Nova Gorica"]
[Date "2024.01.27"]
[Round "2.6"]
[White "Furlan, Miha"]
[Black "Ceres, Dragos"]
[Result "1/2-1/2"]
[ECO "B90"]
[WhiteElo "2287"]
[BlackElo "2438"]
[Annotator "RC"]
[PlyCount "140"]
[EventDate "2024.01.22"]
[EventType "swiss"]
[EventCountry "SLO"]
[SourceTitle "playchess.com"]
[Source "ChessBase"]
[SourceQuality "1"]
[TimeControl "5400+30"]

1. e4 {[%emt 0:00:04]} c5 {[%emt 0:16:27]} 2. Nf3 {[%emt 0:00:09]} d6 {[%emt 0:00:04]} 3. d4 {[%emt 0:00:15]} cxd4 {[%emt 0:00:07]} 4. Nxd4 {[%emt 0:00:05]} Nf6 {[%emt 0:00:05]} 5. Nc3 {[%emt 0:00:13]} a6 {[%emt 0:00:04]} 6. h3 {[%emt 0:00:38]} e5 {[%emt 0:04:04]} 7. Nf3 {[%emt 0:00:16]} Be7 {[%emt 0:02:40]} 8. g4 {[%emt 0:00:54]} Be6 {[%emt 0:01:29]} 9. g5 {[%emt 0:00:40]} Nfd7 {[%emt 0:00:09]} 10. Be3 {[%emt 0:00:46]} Nc6 {[%emt 0:00:56]} 11. h4 {[%emt 0:02:11]} Rc8 {[%emt 0:02:45]} 12. Qd2 {[%emt 0:08:07]} Nc5 {[%emt 0:06:02]} 13. Bh3 {[%emt 0:16:12]} Qd7 {[%emt 0:15:28]} 14. Ng1 {[%emt 0:05:40]} Nb4 {[%emt 0:06:05]} 15. Bxc5 {[%emt 0:08:52]} Rxc5 {[%emt 0:00:08]} 16. a3 {[%emt 0:06:49]} Nc6 {[%emt 0:00:06]} 17. b4 {[%emt 0:04:40]} Rc4 {[%emt 0:00:07]} 18. Bf1 {[%emt 0:03:22]} Rd4 {[%emt 0:02:24]} 19. Bd3 {[%emt 0:03:17]} h6 {[%emt 0:01:13]} 20. gxh6 {[%emt 0:03:45]} Rxh6 {[%emt 0:00:18]} 21. Nce2 {[%emt 0:03:55]} Bxh4 {[%emt 0:04:20]} 22. O-O-O {[%emt 0:07:56]} Bg4 {[%emt 0:02:00]} 23. f3 {[%emt 0:03:29]} Be6 {[%emt 0:00:16]} 24. Kb2 {[%emt 0:01:02]} Be1 {[%emt 0:07:59]} 25. Qxe1 {[%emt 0:07:00]} Rxh1 {[%emt 0:00:11]} 26. Qg3 {[%emt 0:00:27]} Kf8 {[%emt 0:01:10]} 27. Nxd4 {[%emt 0:02:39]} Nxd4 {[%emt 0:00:11]} 28. Qg2 {[%emt 0:01:10]} Rh6 {[%emt 0:00:42]} 29. Ne2 {[%emt 0:01:42]} Nxe2 {[%emt 0:02:05]} 30. Bxe2 {[%emt 0:00:08]} Qc7 {[%emt 0:00:48]} 31. Qf2 {[%emt 0:01:29]} g5 {[%emt 0:01:52]} 32. Qe3 {[%emt 0:00:49]} f6 {[%emt 0:00:21]} 33. Qa7 {[%emt 0:01:32]} Rh2 {[%emt 0:00:51]} 34. Bd3 {[%emt 0:00:59]} Ke7 {[%emt 0:01:59]} 35. Qg1 {[%emt 0:01:17]} Rh4 {[%emt 0:00:56]} 36. Rd2 {[%emt 0:00:31]} a5 {[%emt 0:01:17]} 37. Rh2 {[%emt 0:01:11]} axb4 {[%emt 0:01:31]} 38. axb4 {[%emt 0:00:05]} Rxh2 {[%emt 0:02:16]} 39. Qxh2 {[%emt 0:00:06]} Qc8 {[%emt 0:00:19]} 40. Qf2 {[%emt 0:01:34]} d5 {[%emt 0:01:07]} 41. Qa7 {[%emt 0:01:22]} d4 {[%emt 0:02:46]} 42. Kc1 {[%emt 0:00:10]} Kf8 {[%emt 0:01:24]} 43. Kd1 {[%emt 0:00:26]} Qd7 {[%emt 0:00:54]} 44. Ke1 {[%emt 0:00:56]} Kg7 {[%emt 0:00:14]} 45. Kf2 {[%emt 0:00:10]} Kg6 {[%emt 0:00:11]} 46. Qb6 {[%emt 0:00:39]} Qc8 {[%emt 0:01:10]} 47. Kg3 {[%emt 0:01:04]} Bd7 {[%emt 0:01:28]} 48. Qd6 {[%emt 0:00:21]} Qe8 {[%emt 0:03:07]} 49. Bc4 {[%emt 0:00:22]} Bc8 {[%emt 0:00:29]} 50. Bd5 {[%emt 0:00:50]} Qh8 {[%emt 0:02:15]} 51. Be6 {[%emt 0:00:38]} Bxe6 {[%emt 0:02:14]} 52. Qxe6 {[%emt 0:00:02]} Qd8 {[%emt 0:00:09]} 53. b5 {[%emt 0:01:02]} b6 {[%emt 0:00:46]} 54. Kg4 {[%emt 0:00:30]} Kg7 {[%emt 0:01:36]} 55. Kg3 {[%emt 0:00:10]} Qc7 {[%emt 0:00:54]} 56. Qc6 {[%emt 0:00:39]} Qa7 {[%emt 0:00:09]} 57. Qe6 {[%emt 0:00:21]} Qc7 {[%emt 0:02:01]} 58. Qc6 {[%emt 0:00:09]} Qd8 {[%emt 0:00:05]} 59. Qe6 {[%emt 0:00:11]} Kg6 {[%emt 0:00:33]} 60. Kg2 {[%emt 0:00:56]} Qc7 {[%emt 0:01:42]} 61. Qc6 {[%emt 0:00:17]} Qb8 {[%emt 0:00:20]} 62. Qe6 {[%emt 0:00:10]} Qa7 {[%emt 0:00:09]} 63. Qg8+ {[%emt 0:00:56]} Qg7 {[%emt 0:00:17]} 64. Qe6 {[%emt 0:00:10]} Qa7 {[%emt 0:02:24]} 65. Kg3 {[%emt 0:00:14]} Kg7 {[%emt 0:00:17]} 66. Kg2 {[%emt 0:00:22]} Qc7 {[%emt 0:01:09]} 67. Qc6 {[%emt 0:00:19]} Qd8 {[%emt 0:00:07]} 68. Qe6 {[%emt 0:00:09]} Kg6 {[%emt 0:00:59]} 69. Kg3 {[%emt 0:00:29]} Qb8 {[%emt 0:00:19]} 70. Kg2 {[%emt 0:00:19]} Qd8 {[%emt 0:00:42]} 1/2-1/2

[Event "28th Hit Open-A 2024"]
[Site "Nova Gorica"]
[Date "2024.01.27"]
[Round "2.7"]
[White "Karacsonyi, Gellert"]
[Black "Drazic, Sinisa"]
[Result "1/2-1/2"]
[ECO "A46"]
[WhiteElo "2398"]
[BlackElo "2270"]
[Annotator "RC"]
[PlyCount "160"]
[EventDate "2024.01.22"]
[EventType "swiss"]
[EventCountry "SLO"]
[SourceTitle "playchess.com"]
[Source "ChessBase"]
[SourceQuality "1"]
[TimeControl "5400+30"]

1. d4 {[%emt 0:00:03]} Nf6 {[%emt 0:00:27]} 2. Nf3 {[%emt 0:00:18]} c6 {[%emt 0:00:13]} 3. Bf4 {[%emt 0:00:52]} Qb6 {[%emt 0:00:14]} 4. Qc1 {[%emt 0:00:17]} d5 {[%emt 0:00:25]} 5. h3 {[%emt 0:04:30]} Bf5 {[%emt 0:00:44]} 6. e3 {[%emt 0:00:26]} e6 {[%emt 0:00:38]} 7. Be2 {[%emt 0:04:13]} h6 {[%emt 0:00:39]} 8. O-O {[%emt 0:00:18]} c5 {[%emt 0:00:46]} 9. Nc3 {[%emt 0:03:07]} c4 {[%emt 0:15:40]} 10. a4 {[%emt 0:04:57]} a6 {[%emt 0:00:36]} 11. Ne5 {[%emt 0:06:01]} Bb4 {[%emt 0:08:00]} 12. Na2 {[%emt 0:10:23]} Be7 {[%emt 0:01:24]} 13. b3 {[%emt 0:02:37]} cxb3 {[%emt 0:00:20]} 14. cxb3 {[%emt 0:00:08]} Nc6 {[%emt 0:01:08]} 15. Nxc6 {[%emt 0:06:00]} bxc6 {[%emt 0:00:13]} 16. a5 {[%emt 0:00:44]} Qb7 {[%emt 0:00:15]} 17. Qb2 {[%emt 0:07:04]} O-O {[%emt 0:01:22]} 18. Rfc1 {[%emt 0:01:31]} Nd7 {[%emt 0:01:41]} 19. b4 {[%emt 0:02:04]} Rfe8 {[%emt 0:02:46]} 20. Qa3 {[%emt 0:08:00]} Bf8 {[%emt 0:01:51]} 21. Rc3 {[%emt 0:01:19]} e5 {[%emt 0:01:46]} 22. dxe5 {[%emt 0:00:21]} Nxe5 {[%emt 0:00:03]} 23. Rac1 {[%emt 0:04:14]} Rac8 {[%emt 0:00:39]} 24. Bf1 {[%emt 0:05:33]} g5 {[%emt 0:11:51]} 25. Bxe5 {[%emt 0:04:36]} Rxe5 {[%emt 0:00:52]} 26. Qa4 {[%emt 0:02:46]} Bd7 {[%emt 0:01:32]} 27. Qc2 {[%emt 0:00:09]} Ree8 {[%emt 0:01:21]} 28. Bd3 {[%emt 0:02:04]} Bg7 {[%emt 0:04:28]} 29. Rb3 {[%emt 0:00:18]} Be6 {[%emt 0:00:56]} 30. Rbb1 {[%emt 0:01:08]} Qa7 {[%emt 0:09:54]} 31. Qc5 {[%emt 0:02:32]} Qa8 {[%emt 0:02:49]} 32. Nc3 {[%emt 0:01:14]} Bf8 {[%emt 0:00:49]} 33. Qd4 {[%emt 0:11:43]} c5 {[%emt 0:02:18]} 34. bxc5 {[%emt 0:00:02]} Rxc5 {[%emt 0:00:10]} 35. Qa4 {[%emt 0:02:00]} Rec8 {[%emt 0:09:09]} 36. Ne2 {[%emt 0:00:14]} Rxc1+ {[%emt 0:01:15]} 37. Rxc1 {[%emt 0:00:01]} Rxc1+ {[%emt 0:00:02]} 38. Nxc1 {[%emt 0:00:07]} Qb7 {[%emt 0:00:11]} 39. Ne2 {[%emt 0:01:52]} Qb4 {[%emt 0:00:21]} 40. Qxb4 {[%emt 0:00:32]} Bxb4 {[%emt 0:00:02]} 41. Bxa6 {[%emt 0:00:08]} Bxa5 {[%emt 0:00:01]} 42. Kf1 {[%emt 0:00:39]} Kg7 {[%emt 0:00:14]} 43. Nd4 {[%emt 0:00:51]} Kf6 {[%emt 0:00:05]} 44. Ke2 {[%emt 0:00:06]} Bc7 {[%emt 0:00:21]} 45. Bb7 {[%emt 0:01:00]} Ke7 {[%emt 0:00:30]} 46. g4 {[%emt 0:00:54]} Bd6 {[%emt 0:00:46]} 47. Ba6 {[%emt 0:00:57]} Bc7 {[%emt 0:00:21]} 48. Bd3 {[%emt 0:00:13]} Bb6 {[%emt 0:00:47]} 49. Nc2 {[%emt 0:01:14]} Bc7 {[%emt 0:00:14]} 50. f3 {[%emt 0:00:20]} Be5 {[%emt 0:00:21]} 51. Bh7 {[%emt 0:00:35]} Kf6 {[%emt 0:00:22]} 52. Bd3 {[%emt 0:00:50]} h5 {[%emt 0:01:24]} 53. Nb4 {[%emt 0:00:11]} hxg4 {[%emt 0:00:24]} 54. hxg4 {[%emt 0:00:10]} Bc3 {[%emt 0:00:22]} 55. Nc6 {[%emt 0:00:39]} Bd7 {[%emt 0:00:15]} 56. Nd4 {[%emt 0:00:12]} Ke5 {[%emt 0:00:57]} 57. Nf5 {[%emt 0:00:05]} f6 {[%emt 0:01:10]} 58. Nh6 {[%emt 0:00:09]} Be8 {[%emt 0:00:41]} 59. Nf5 {[%emt 0:00:10]} Ba4 {[%emt 0:00:27]} 60. Nh6 {[%emt 0:00:58]} Ba5 {[%emt 0:02:12]} 61. Nf5 {[%emt 0:00:09]} Bb6 {[%emt 0:00:07]} 62. Ba6 {[%emt 0:01:15]} Bc2 {[%emt 0:00:55]} 63. Bd3 {[%emt 0:00:04]} Bb3 {[%emt 0:00:15]} 64. Kd2 {[%emt 0:00:04]} d4 {[%emt 0:00:44]} 65. Nxd4 {[%emt 0:00:57]} Bxd4 {[%emt 0:00:16]} 66. exd4+ {[%emt 0:00:05]} Kxd4 {[%emt 0:00:11]} 67. Be4 {[%emt 0:00:06]} Bc4 {[%emt 0:00:24]} 68. Bc6 {[%emt 0:00:10]} Be6 {[%emt 0:00:39]} 69. Ke2 {[%emt 0:00:06]} Bc8 {[%emt 0:00:13]} 70. Kf2 {[%emt 0:00:05]} Ba6 {[%emt 0:00:11]} 71. Be4 {[%emt 0:00:05]} Bc4 {[%emt 0:00:26]} 72. Bc6 {[%emt 0:00:08]} Bd5 {[%emt 0:00:07]} 73. Bxd5 {[%emt 0:00:51]} Kxd5 {[%emt 0:00:03]} 74. Ke3 {[%emt 0:00:07]} Ke5 {[%emt 0:00:05]} 75. Ke2 {[%emt 0:00:04]} Kd4 {[%emt 0:00:06]} 76. Kd2 {[%emt 0:00:05]} Ke5 {[%emt 0:00:11]} 77. Ke3 {[%emt 0:00:04]} f5 {[%emt 0:00:02]} 78. gxf5 {[%emt 0:00:06]} Kxf5 {[%emt 0:00:01]} 79. Ke2 {[%emt 0:00:07]} g4 {[%emt 0:00:03]} 80. fxg4+ {[%emt 0:00:04]} Kxg4 {[%emt 0:00:02]} 1/2-1/2

[Event "28th Hit Open-A 2024"]
[Site "Nova Gorica"]
[Date "2024.01.27"]
[Round "2.8"]
[White "Perossa, Nicolas"]
[Black "Kulkarni Bhakti"]
[Result "0-1"]
[ECO "C54"]
[WhiteElo "2277"]
[BlackElo "2364"]
[Annotator "RC"]
[PlyCount "104"]
[EventDate "2024.01.22"]
[EventType "swiss"]
[EventCountry "SLO"]
[SourceTitle "playchess.com"]
[Source "ChessBase"]
[SourceQuality "1"]
[TimeControl "5400+30"]

1. e4 {[%emt 0:04:39]} e5 {[%emt 0:05:03]} 2. Nf3 {[%emt 0:00:00]} Nc6 {[%emt 0:00:07]} 3. Bc4 {[%emt 0:00:00]} Bc5 {[%emt 0:00:47]} 4. O-O {[%emt 0:00:00]} Nf6 {[%emt 0:00:13]} 5. d3 {[%emt 0:00:00]} d6 {[%emt 0:01:10]} 6. c3 {[%emt 0:00:00]} a6 {[%emt 0:00:20]} 7. Bb3 {[%emt 0:04:59]} Ba7 {[%emt 0:00:56]} 8. Nbd2 {[%emt 0:13:59]} h6 {[%emt 0:01:57]} 9. Re1 {[%emt 0:01:04]} g5 {[%emt 0:05:41]} 10. Nf1 {[%emt 0:17:17]} g4 {[%emt 0:01:48]} 11. N3d2 {[%emt 0:07:18]} Be6 {[%emt 0:09:57]} 12. Nc4 {[%emt 0:06:21]} Qd7 {[%emt 0:03:46]} 13. Be3 {[%emt 0:05:21]} Bxe3 {[%emt 0:06:00]} 14. Ncxe3 {[%emt 0:00:52]} O-O-O {[%emt 0:05:39]} 15. Nd5 {[%emt 0:27:59]} Bxd5 {[%emt 0:06:53]} 16. exd5 {[%emt 0:00:02]} Ne7 {[%emt 0:03:16]} 17. Ne3 {[%emt 0:00:01]} Rdg8 {[%emt 0:00:26]} 18. Ba4 {[%emt 0:03:28]} Qd8 {[%emt 0:03:22]} 19. c4 {[%emt 0:00:01]} h5 {[%emt 0:00:24]} 20. b4 {[%emt 0:04:18]} h4 {[%emt 0:02:30]} 21. Qd2 {[%emt 0:01:39]} b6 {[%emt 0:05:40]} 22. Bc6 {[%emt 0:01:11]} Nxc6 {[%emt 0:02:29]} 23. dxc6 {[%emt 0:00:01]} Qe8 {[%emt 0:00:14]} 24. Nd5 {[%emt 0:01:26]} Nxd5 {[%emt 0:04:06]} 25. cxd5 {[%emt 0:00:02]} Kb8 {[%emt 0:01:55]} 26. d4 {[%emt 0:00:58]} f6 {[%emt 0:02:58]} 27. Re3 {[%emt 0:00:20]} Qf7 {[%emt 0:07:55]} 28. dxe5 {[%emt 0:00:02]} fxe5 {[%emt 0:00:06]} 29. Rf1 {[%emt 0:01:06]} Rh5 {[%emt 0:02:00]} 30. Ra3 {[%emt 0:00:34]} Kc8 {[%emt 0:08:31]} 31. Rxa6 {[%emt 0:00:01]} Kd8 {[%emt 0:00:04]} 32. f3 {[%emt 0:00:58]} g3 {[%emt 0:04:06]} 33. h3 {[%emt 0:00:21]} Rf5 {[%emt 0:00:53]} 34. Re1 {[%emt 0:00:39]} Rgg5 {[%emt 0:01:46]} 35. Re4 {[%emt 0:00:26]} Rf4 {[%emt 0:00:37]} 36. b5 {[%emt 0:00:27]} Rgf5 {[%emt 0:00:36]} 37. Raa4 {[%emt 0:00:19]} Qg6 {[%emt 0:00:53]} 38. Rac4 {[%emt 0:00:45]} Rxe4 {[%emt 0:02:04]} 39. Rxe4 {[%emt 0:00:11]} Rf4 {[%emt 0:00:01]} 40. Qe3 {[%emt 0:00:50]} Qf7 {[%emt 0:00:46]} 41. Rxf4 {[%emt 0:00:30]} exf4 {[%emt 0:00:04]} 42. Qd4 {[%emt 0:00:26]} Qg6 {[%emt 0:02:21]} 43. Qd1 {[%emt 0:00:38]} Qf6 {[%emt 0:00:19]} 44. a4 {[%emt 0:00:30]} Qb2 {[%emt 0:00:08]} 45. Kh1 {[%emt 0:00:28]} Kc8 {[%emt 0:00:26]} 46. Kg1 {[%emt 0:00:32]} Kb8 {[%emt 0:00:06]} 47. Kh1 {[%emt 0:00:27]} Qf2 {[%emt 0:00:29]} 48. Qc1 {[%emt 0:00:32]} Qd4 {[%emt 0:00:19]} 49. a5 {[%emt 0:00:31]} bxa5 {[%emt 0:00:15]} 50. Qb1 {[%emt 0:00:30]} a4 {[%emt 0:00:39]} 51. b6 {[%emt 0:00:52]} Qxb6 {[%emt 0:00:02]} 52. Qa1 {[%emt 0:00:07]} Qb3 {[%emt 0:00:04]} 0-1